fUSD/lending_fUSD_20240506
["ID","MTS","AMOUNT","RATE_DAILY","PERIOD"]
[326518266,1715038246444,-511.57710106,0.00024657,2]
[326518267,1715038246454,-1693.94,0.00024657,2]
[326518268,1715038246465,-500.0,0.00024657,2]
[326518269,1715038246475,-500.0,0.00024657,2]
[326518270,1715038246486,-710.27,0.00024657,2]
[326518271,1715038246497,-500.0,0.00024657,2]
[326518272,1715038246507,-500.0,0.00024657,2]
[326518273,1715038246518,-500.0,0.00024657,2]
[326518274,1715038246528,-500.0,0.00024657,2]
[326518275,1715038246539,-500.0,0.00024657,2]
[326518276,1715038246549,-631.65,0.00024657,2]
[326518277,1715038246559,-500.0,0.00024657,2]
[326518278,1715038246570,-500.0,0.00024657,2]
[326518279,1715038246581,-500.0,0.00024657,2]
[326518280,1715038246591,-500.0,0.00024657,2]
[326518281,1715038246601,-500.0,0.00024657,2]
[326518282,1715038246620,-500.0,0.00024657,2]
[326518283,1715038246688,-500.0,0.00024657,2]
[326518284,1715038246702,-552.31,0.00024657,2]
[326518285,1715038246713,-574.49,0.00024657,2]
[326518286,1715038246724,-500.0,0.00024657,2]
[326518287,1715038246735,-500.0,0.00024657,2]
[326518288,1715038246746,-1015.1,0.00024657,2]
[326518289,1715038246757,-500.0,0.00024657,2]
[326518290,1715038246768,-500.0,0.00024657,2]
[326518291,1715038246779,-1147.48,0.00024657,2]
[326518292,1715038246789,-500.0,0.00024657,2]
[326518293,1715038246801,-885.64,0.00024657,2]
[326518294,1715038246812,-500.0,0.00024657,2]
[326518295,1715038246823,-2640.19,0.00024657,2]
[326518296,1715038246833,-500.0,0.00024657,2]
[326518297,1715038246845,-500.0,0.00024657,2]
[326518298,1715038246858,-505.0630793,0.00024657,2]
[326518299,1715038246869,-1455.84,0.00024657,2]
[326518300,1715038246879,-668.99,0.00024657,2]
[326518301,1715038246890,-500.0,0.00024657,2]
[326518302,1715038246902,-824.69,0.00024657,2]
[326518303,1715038246914,-500.0,0.00024657,2]
[326518304,1715038246924,-337.16417585,0.00024657,2]
[326518305,1715038246936,-500.0,0.00024657,2]
[326518306,1715038246946,-500.0,0.00024657,2]
[326518307,1715038246957,-500.0,0.00024657,2]
[326518308,1715038246968,-500.0,0.00024657,2]
[326518309,1715038246979,-500.0,0.00024657,2]
[326518310,1715038246989,-500.0,0.00024657,2]
[326518311,1715038247000,-500.0,0.00024657,2]
[326518312,1715038247012,-699.44,0.00024657,2]
[326518313,1715038247023,-500.0,0.00024657,2]
[326518314,1715038247034,-500.0,0.00024657,2]
[326518315,1715038247045,-500.0,0.00024657,2]
[326518316,1715038247056,-500.0,0.00024657,2]
[326518317,1715038247067,-926.06,0.00024657,2]
[326518318,1715038247077,-500.0,0.00024657,2]
[326518319,1715038247088,-1881.28,0.00024657,2]
[326518320,1715038247099,-500.0,0.00024657,2]
[326518321,1715038247110,-500.0,0.00024657,2]
[326518322,1715038247120,-870.01,0.00024657,2]
[326518323,1715038247131,-864.48,0.00024657,2]
[326518324,1715038247141,-706.78,0.00024657,2]
[326518325,1715038247151,-1846.31,0.00024657,2]
[326518326,1715038247164,-150.0,0.00024657,2]
[326518327,1715038247175,-500.0,0.00024657,2]
[326518328,1715038247186,-500.0,0.00024657,2]
[326518329,1715038247196,-500.0,0.00024657,2]
[326518330,1715038247209,-500.0,0.00024657,2]
[326518331,1715038247220,-1816.09,0.00024657,2]
[326518332,1715038247231,-500.0,0.00024657,2]
[326518333,1715038247241,-500.0,0.00024657,2]
[326518334,1715038247252,-3064.95,0.00024657,2]
[326518335,1715038247262,-684.2,0.00024657,2]
[326518336,1715038247273,-500.0,0.00024657,2]
[326518337,1715038247284,-500.0,0.00024657,2]
[326518338,1715038247295,-500.0,0.00024657,2]
[326518339,1715038247306,-909.08,0.00024657,2]
[326518340,1715038247318,-500.0,0.00024657,2]
[326518341,1715038247329,-500.0,0.00024657,2]
[326518342,1715038247340,-500.0,0.00024657,2]
[326518343,1715038247350,-500.0,0.00024657,2]
[326518344,1715038247372,-500.0,0.00024657,2]
[326518345,1715038247382,-538.64,0.00024657,2]
[326518346,1715038247393,-886.92,0.00024657,2]
[326518347,1715038247403,-500.0,0.00024657,2]
[326518348,1715038247415,-705.98,0.00024657,2]
[326518349,1715038247425,-807.9,0.00024657,2]
[326518350,1715038247435,-500.0,0.00024657,2]
[326518351,1715038247446,-500.0,0.00024657,2]
[326518352,1715038247457,-500.0,0.00024657,2]
[326518353,1715038247467,-500.0,0.00024657,2]
[326518354,1715038247478,-500.0,0.00024657,2]
[326518355,1715038247488,-1105.75,0.00024657,2]
[326518356,1715038247498,-500.0,0.00024657,2]
[326518357,1715038247508,-599.38,0.00024657,2]
[326518358,1715038247518,-500.0,0.00024657,2]
[326518359,1715038247528,-668.24,0.00024657,2]
[326518360,1715038247538,-1254.59,0.00024657,2]
[326518361,1715038247548,-500.0,0.00024657,2]
[326518362,1715038247558,-722.22,0.00024657,2]
[326518363,1715038247568,-1378.33,0.00024657,2]
[326518364,1715038247578,-2324.58,0.00024657,2]
[326518365,1715038247588,-503.58202731,0.00024657,2]
[326518366,1715038247598,-500.0,0.00024657,2]
[326518367,1715038247609,-500.0,0.00024657,2]
[326518368,1715038247620,-500.0,0.00024657,2]
[326518369,1715038247630,-500.0,0.00024657,2]
[326518370,1715038247640,-1352.7,0.00024657,2]
[326518371,1715038247650,-910.73,0.00024657,2]
[326518372,1715038247660,-500.0,0.00024657,2]
[326518373,1715038247697,-1129.92,0.00024657,2]
[326518374,1715038247736,-924.7,0.00024657,2]
[326518375,1715038247747,-807.79,0.00024657,2]
[326518376,1715038247757,-486.51989776,0.00024657,2]
[326518377,1715038247769,-500.0,0.00024657,2]
[326518378,1715038247780,-500.0,0.00024657,2]
[326518379,1715038247790,-687.46,0.00024657,2]
[326518380,1715038247800,-500.0,0.00024657,2]
[326518381,1715038247811,-500.0,0.00024657,2]
[326518382,1715038247820,-500.0,0.00024657,2]
[326518383,1715038247831,-563.91,0.00024657,2]
[326518384,1715038247843,-557.89239703,0.00024657,2]
[326518385,1715038247855,-500.0,0.00024657,2]
[326518386,1715038247866,-500.0,0.00024657,2]
[326518387,1715038247877,-1345.5,0.00024657,2]
[326518388,1715038247887,-618.28,0.00024657,2]
[326518389,1715038247899,-500.0,0.00024657,2]
[326518390,1715038247908,-500.0,0.00024657,2]
[326518391,1715038247918,-785.29,0.00024657,2]
[326518392,1715038247928,-500.0,0.00024657,2]
[326518394,1715038247939,-1204.87119506,0.00024657,3]
[326518397,1715038247950,-502.94942627,0.00024657,2]
[326518399,1715038247960,-500.0,0.00024657,2]
[326518401,1715038247970,-500.0,0.00024657,2]
[326518403,1715038247980,-817.36,0.00024657,2]
[326518404,1715038247992,-500.0,0.00024657,2]
[326518406,1715038248003,-1138.08,0.00024657,2]
[326518408,1715038248014,-500.0,0.00024657,2]
[326518410,1715038248024,-500.0,0.00024657,2]
[326518412,1715038248035,-1078.71,0.00024657,2]
[326518414,1715038248046,-500.0,0.00024657,2]
[326518416,1715038248057,-801.23,0.00024657,2]
[326518418,1715038248067,-500.0,0.00024657,2]
[326518420,1715038248077,-500.0,0.00024657,2]
[326518422,1715038248087,-500.0,0.00024657,2]
[326518424,1715038248098,-731.09,0.00024657,2]
[326518426,1715038248108,-500.0,0.00024657,2]
[326518428,1715038248119,-500.0,0.00024657,2]
[326518430,1715038248129,-1280.77,0.00024657,2]
[326518432,1715038248139,-500.0,0.00024657,2]
[326518434,1715038248149,-1128.27,0.00024657,2]
[326518436,1715038248161,-500.0,0.00024657,2]
[326518438,1715038248172,-1474.25,0.00024657,2]
[326518440,1715038248182,-1951.83,0.00024657,2]
[326518442,1715038248192,-801.15,0.00024657,2]
[326518444,1715038248202,-500.0,0.00024657,2]
[326518446,1715038248212,-500.0,0.00024657,2]
[326518448,1715038248222,-524.83,0.00024657,2]
[326518450,1715038248233,-730.84,0.00024657,2]
[326518452,1715038248245,-1185.82,0.00024657,2]
[326518454,1715038248255,-1197.69,0.00024657,2]
[326518456,1715038248266,-500.0,0.00024657,2]
[326518458,1715038248277,-500.0,0.00024657,2]
[326518460,1715038248287,-500.0,0.00024657,2]
[326518462,1715038248297,-1270.4,0.00024657,2]
[326518464,1715038248307,-798.84,0.00024657,2]
[326518466,1715038248339,-500.0,0.00024657,2]
[326518468,1715038248350,-500.0,0.00024657,2]
[326518470,1715038248366,-709.65,0.00024657,2]
[326518472,1715038248380,-1020.16,0.00024657,2]
[326518474,1715038248391,-1284.96,0.00024657,2]
[326518476,1715038248401,-1290.11,0.00024657,2]
[326518478,1715038248411,-1733.3,0.00024657,2]
[326518480,1715038248421,-1087.4,0.00024657,2]
[326518482,1715038248432,-500.0,0.00024657,2]
[326518484,1715038248442,-500.0,0.00024657,2]
[326518486,1715038248452,-500.0,0.00024657,2]
[326518488,1715038248462,-1976.61,0.00024657,2]
[326518490,1715038248471,-669.75,0.00024657,2]
[326518492,1715038248480,-500.0,0.00024657,2]
[326518494,1715038248490,-1255.13,0.00024657,2]
[326518496,1715038248500,-500.0,0.00024657,2]
[326518498,1715038248510,-500.0,0.00024657,2]
[326518500,1715038248520,-500.0,0.00024657,2]
[326518501,1715038248530,-1561.34,0.00024657,2]
[326518503,1715038248540,-942.09,0.00024657,2]
[326518506,1715038248551,-500.0,0.00024657,2]
[326518507,1715038248562,-500.0,0.00024657,2]
[326518510,1715038248572,-985.04,0.00024657,2]
[326518511,1715038248582,-500.0,0.00024657,2]
[326518513,1715038248593,-500.0,0.00024657,2]
[326518516,1715038248604,-1442.5,0.00024657,2]
[326518517,1715038248614,-1259.09,0.00024657,2]
[326518519,1715038248624,-716.48,0.00024657,2]
[326518521,1715038248635,-500.0,0.00024657,2]
[326518523,1715038248648,-500.0,0.00024657,2]
[326518526,1715038248658,-2804.12,0.00024657,2]
[326518527,1715038248670,-500.0,0.00024657,2]
[326518529,1715038248680,-500.0,0.00024657,2]
[326518532,1715038248691,-500.0,0.00024657,2]
[326518533,1715038248702,-500.0,0.00024657,2]
[326518535,1715038248714,-500.0,0.00024657,2]
[326518558,1715038248941,-1334.4,0.00024657,2]
[326518560,1715038248953,-589.01,0.00024657,2]
[326518562,1715038248964,-500.0,0.00024657,2]
[326518564,1715038248974,-500.0,0.00024657,2]
[326518566,1715038248984,-829.31,0.00024657,2]
[326518568,1715038248994,-500.0,0.00024657,2]
[326518570,1715038249005,-500.0,0.00024657,2]
[326518572,1715038249015,-500.0,0.00024657,2]
[326518574,1715038249025,-500.0,0.00024657,2]
[326518576,1715038249036,-500.0,0.00024657,2]
[326518578,1715038249046,-1140.78,0.00024657,2]
[326518580,1715038249057,-692.81,0.00024657,2]
[326518582,1715038249067,-556.17,0.00024657,2]
[326518584,1715038249077,-553.25,0.00024657,2]
[326518586,1715038249092,-500.0,0.00024657,2]
[326518588,1715038249107,-500.0,0.00024657,2]
[326518590,1715038249156,-2922.31,0.00024657,2]
[326518593,1715038249168,-500.0,0.00024657,2]
[326518595,1715038249178,-749.47,0.00024657,2]
[326518596,1715038249188,-500.0,0.00024657,2]
[326518599,1715038249199,-500.0,0.00024657,2]
[326518601,1715038249209,-511.35,0.00024657,2]
[326518602,1715038249219,-633.6,0.00024657,2]
[326518604,1715038249230,-500.0,0.00024657,2]
[326518606,1715038249240,-500.0,0.00024657,2]
[326518608,1715038249251,-500.0,0.00024657,2]
[326518610,1715038249261,-500.0,0.00024657,2]
[326518612,1715038249271,-1237.18,0.00024657,2]
[326518614,1715038249281,-764.71,0.00024657,2]
[326518617,1715038249292,-744.87,0.00024657,2]
[326518618,1715038249302,-500.0,0.00024657,2]
[326518620,1715038249311,-2617.48,0.00024657,2]
[326518622,1715038249322,-500.0,0.00024657,2]
[326518624,1715038249332,-2566.25,0.00024657,2]
[326518626,1715038249341,-500.0,0.00024657,2]
[326518628,1715038249352,-500.0,0.00024657,2]
[326518631,1715038249367,-500.0,0.00024657,2]
[326518632,1715038249377,-639.45,0.00024657,2]
[326518634,1715038249386,-1347.34,0.00024657,2]
[326518636,1715038249396,-805.27,0.00024657,2]
[326518638,1715038249405,-872.39,0.00024657,2]
[326518639,1715038249416,-563.21,0.00024657,2]
[326518640,1715038249426,-500.0,0.00024657,2]
[326518641,1715038249437,-515.74,0.00024657,2]
[326518642,1715038249447,-831.44,0.00024657,2]
[326518643,1715038249456,-500.0,0.00024657,2]
[326518644,1715038249466,-780.01,0.00024657,2]
[326518645,1715038249476,-2336.28,0.00024657,2]
[326518646,1715038249486,-1122.34,0.00024657,2]
[326518647,1715038249496,-500.0,0.00024657,2]
[326518648,1715038249506,-772.46,0.00024657,2]
[326518649,1715038249516,-722.59,0.00024657,2]
[326518650,1715038249525,-1478.0,0.00024657,2]
[326518651,1715038249535,-2649.98,0.00024657,2]
[326518652,1715038249545,-500.0,0.00024657,2]
[326518653,1715038249555,-699.16,0.00024657,2]
[326518654,1715038249564,-500.0,0.00024657,2]
[326518655,1715038249574,-500.0,0.00024657,2]
[326518656,1715038249583,-500.0,0.00024657,2]
[326518657,1715038249594,-505.04331225,0.00024657,2]
[326518659,1715038249604,-500.0,0.00024657,2]
[326518661,1715038249613,-1010.85,0.00024657,2]
[326518663,1715038249623,-500.0,0.00024657,2]
[326518665,1715038249633,-500.0,0.00024657,2]
[326518667,1715038249643,-1720.59,0.00024657,2]
[326518669,1715038249653,-500.0,0.00024657,2]
[326518671,1715038249664,-500.0,0.00024657,2]
[326518673,1715038249674,-500.0,0.00024657,2]
[326518675,1715038249683,-829.09,0.00024657,2]
[326518677,1715038249692,-1235.1,0.00024657,2]
[326518679,1715038249702,-1164.84,0.00024657,2]
[326518681,1715038249711,-1330.98,0.00024657,2]
[326518682,1715038249722,-1214.12,0.00024657,2]
[326518684,1715038249731,-500.0,0.00024657,2]
[326518686,1715038249742,-500.0,0.00024657,2]
[326518688,1715038249751,-500.0,0.00024657,2]
[326518690,1715038249761,-500.0,0.00024657,2]
[326518692,1715038249772,-666.0,0.00024657,2]
[326518694,1715038249782,-7864.91,0.00024657,2]
[326518697,1715038249792,-498.6391163,0.00024657,2]
[326518698,1715038249802,-812.88,0.00024657,2]
[326518700,1715038249811,-1080.19,0.00024657,2]
[326518702,1715038249822,-969.08,0.00024657,2]
[326518704,1715038249831,-500.0,0.00024657,2]
[326518706,1715038249841,-2405.8,0.00024657,2]
[326518708,1715038249851,-1226.07,0.00024657,2]
[326518710,1715038249866,-1129.87,0.00024657,2]
[326518712,1715038249876,-500.0,0.00024657,2]
[326518714,1715038249886,-321.00829821,0.00024657,2]
[326518716,1715038249897,-1022.82,0.00024657,2]
[326518718,1715038249909,-500.0,0.00024657,2]
[326518720,1715038249925,-841.39,0.00024657,2]
[326518722,1715038249936,-500.0,0.00024657,2]
[326518724,1715038249947,-500.0,0.00024657,2]
[326518726,1715038249958,-500.0,0.00024657,2]
[326518728,1715038249968,-1462.73,0.00024657,2]
[326518730,1715038249978,-30193.38,0.00024657,2]
[326518732,1715038249988,-500.0,0.00024657,2]
[326518734,1715038249998,-1545.91,0.00024657,2]
[326518736,1715038250009,-505.52,0.00024657,2]
[326518738,1715038250019,-500.0,0.00024657,2]
[326518740,1715038250030,-1567.28,0.00024657,2]
[326518742,1715038250041,-1396.08,0.00024657,2]
[326518744,1715038250053,-500.0,0.00024657,2]
[326518746,1715038250063,-500.0,0.00024657,2]
[326518748,1715038250073,-2000.0,0.00024657,2]
[326518750,1715038250084,-500.0,0.00024657,2]
[326518752,1715038250095,-500.0,0.00024657,2]
[326518754,1715038250105,-500.0,0.00024657,2]
[326518756,1715038250115,-1086.58,0.00024657,2]
[326518758,1715038250126,-500.0,0.00024657,2]
[326518760,1715038250136,-500.0,0.00024657,2]
[326518762,1715038250146,-200.0,0.00024657,2]
[326518764,1715038250157,-1292.36,0.00024657,2]
[326518766,1715038250169,-832.34,0.00024657,2]
[326518768,1715038250179,-597.25,0.00024657,2]
[326518770,1715038250189,-1314.03,0.00024657,2]
[326518772,1715038250198,-591.76,0.00024657,2]
[326518774,1715038250208,-576.8,0.00024657,2]
[326518775,1715038250219,-500.0,0.00024657,2]
[326518777,1715038250228,-1046.43,0.00024657,2]
[326518778,1715038250239,-15096.63,0.00024657,2]
[326518779,1715038250248,-500.0,0.00024657,2]
[326518780,1715038250258,-500.0,0.00024657,2]
[326518781,1715038250269,-1007.48,0.00024657,2]
[326518782,1715038250279,-500.0,0.00024657,2]
[326518783,1715038250289,-500.0,0.00024657,2]
[326518784,1715038250299,-2472.76,0.00024657,2]
[326518785,1715038250309,-500.0,0.00024657,2]
[326518786,1715038250318,-500.0,0.00024657,2]
[326518787,1715038250329,-1283.18,0.00024657,2]
[326518788,1715038250340,-1535.54,0.00024657,2]
[326518789,1715038250350,-500.0,0.00024657,2]
[326518790,1715038250363,-500.0,0.00024657,2]
[326518791,1715038250373,-2149.96,0.00024657,2]
[326518792,1715038250383,-500.0,0.00024657,2]
[326518793,1715038250393,-731.33,0.00024657,2]
[326518794,1715038250403,-500.0,0.00024657,2]
[326518795,1715038250419,-538.51,0.00024657,2]
[326518796,1715038250430,-591.51,0.00024657,2]
[326518797,1715038250440,-853.45,0.00024657,2]
[326518798,1715038250450,-1109.21,0.00024657,2]
[326518799,1715038250460,-500.0,0.00024657,2]
[326518800,1715038250473,-948.52,0.00024657,2]
[326518801,1715038250483,-577.7,0.00024657,2]
[326518802,1715038250493,-541.9,0.00024657,2]
[326518805,1715038250503,-986.21,0.00024657,2]
[326518807,1715038250514,-500.0,0.00024657,2]
[326518809,1715038250524,-500.0,0.00024657,2]
[326518811,1715038250534,-576.93,0.00024657,2]
[326518813,1715038250545,-500.0,0.00024657,2]
[326518815,1715038250555,-675.95,0.00024657,2]
[326518816,1715038250565,-2106.34,0.00024657,2]
[326518818,1715038250575,-5317.75,0.00024657,2]
[326518820,1715038250585,-645.5997387,0.00024657,2]
[326518822,1715038250595,-500.0,0.00024657,2]
[326518824,1715038250606,-2996.62,0.00024657,2]
[326518826,1715038250616,-593.91,0.00024657,2]
[326518828,1715038250626,-916.54,0.00024657,2]
[326518829,1715038250636,-500.0,0.00024657,2]
[326518830,1715038250646,-974.65,0.00024657,2]
[326518831,1715038250657,-605.51,0.00024657,2]
[326518832,1715038250669,-1106.92,0.00024657,2]
[326518834,1715038250679,-500.0,0.00024657,2]
[326518836,1715038250689,-264.49527815,0.00024657,2]
[326518838,1715038250699,-500.0,0.00024657,2]
[326518839,1715038250709,-1231.37,0.00024657,2]
[326518841,1715038250719,-610.54,0.00024657,2]
[326518843,1715038250731,-1756.38,0.00024657,2]
[326518845,1715038250741,-500.0,0.00024657,2]
[326518847,1715038250751,-3077.56,0.00024657,2]
[326518849,1715038250761,-508.75258537,0.00024657,2]
[326518851,1715038250772,-1275.77,0.00024657,2]
[326518853,1715038250783,-1026.93,0.00024657,2]
[326518855,1715038250793,-3974.46,0.00024657,2]
[326518858,1715038250807,-262.26496878,0.00024657,2]
[326518860,1715038250817,-500.0,0.00024657,2]
[326518862,1715038250828,-4932.58,0.00024657,2]
[326518864,1715038250839,-503.25108169,0.00024657,2]
[326518866,1715038250849,-510.44,0.00024657,2]
[326518868,1715038250863,-940.91,0.00024657,2]
[326518870,1715038250873,-500.0,0.00024657,2]
[326518872,1715038250883,-2317.0,0.00024657,2]
[326518874,1715038250894,-500.0,0.00024657,2]
[326518876,1715038250906,-500.0,0.00024657,2]
[326518878,1715038250918,-1182.57,0.00024657,2]
[326518880,1715038250928,-2756.18,0.00024657,2]
[326518882,1715038250939,-1264.43,0.00024657,2]
[326518884,1715038250949,-20790.9,0.00024657,2]
[326518886,1715038250960,-990.14,0.00024657,2]
[326518888,1715038250970,-500.0,0.00024657,2]
[326518890,1715038250980,-500.0,0.00024657,2]
[326518891,1715038250991,-1488.28,0.00024657,2]
[326518893,1715038251001,-500.0,0.00024657,2]
[326518895,1715038251011,-500.0,0.00024657,2]
[326518897,1715038251021,-381.06752593,0.00024657,2]
[326518899,1715038251031,-1117.51,0.00024657,2]
[326518901,1715038251041,-837.38,0.00024657,2]
[326518903,1715038251051,-1495.28,0.00024657,2]
[326518905,1715038251061,-500.0,0.00024657,2]
[326518907,1715038251071,-500.0,0.00024657,2]
[326518908,1715038251081,-654.85,0.00024657,2]
[326518909,1715038251092,-500.0,0.00024657,2]
[326518910,1715038251104,-507.16227403,0.00024657,2]
[326518911,1715038251120,-2070.55,0.00024657,2]
[326518912,1715038251137,-1129.57,0.00024657,2]
[326518913,1715038251151,-1905.04,0.00024657,2]
[326518914,1715038251165,-2075.48,0.00024657,2]
[326518915,1715038251180,-1498.3,0.00024657,2]
[326518916,1715038251196,-500.0,0.00024657,2]
[326518917,1715038251211,-500.0,0.00024657,2]
[326518918,1715038251228,-576.39,0.00024657,2]
[326518919,1715038251244,-506.70065552,0.00024657,2]
[326518920,1715038251258,-500.0,0.00024657,2]
[326518921,1715038251272,-541.43,0.00024657,2]
[326518922,1715038251288,-2320.43,0.00024657,2]
[326518923,1715038251304,-1257.01,0.00024657,2]
[326518924,1715038251316,-1950.91,0.00024657,2]
[326518925,1715038251329,-3548.51,0.00024657,2]
[326518926,1715038251344,-1239.14,0.00024657,2]
[326518927,1715038251358,-500.0,0.00024657,2]
[326518928,1715038251373,-500.0,0.00024657,2]
[326518929,1715038251393,-4029.78,0.00024657,2]
[326518930,1715038251417,-818.5,0.00024657,2]
[326518931,1715038251432,-717.38,0.00024657,2]
[326518932,1715038251445,-500.0,0.00024657,2]
[326518933,1715038251458,-1100.17,0.00024657,2]
[326518935,1715038251474,-502.85355803,0.00024657,2]
[326518938,1715038251489,-4013.56,0.00024657,2]
[326518940,1715038251502,-560.14,0.00024657,2]
[326518942,1715038251514,-500.0,0.00024657,2]
[326518945,1715038251530,-502.90333493,0.00024657,2]
[326518947,1715038251543,-1111.41,0.00024657,2]
[326518949,1715038251555,-502.9927911,0.00024657,2]
[326518952,1715038251569,-1015.22,0.00024657,2]
[326518954,1715038251582,-500.0,0.00024657,2]
[326518956,1715038251595,-500.0,0.00024657,2]
[326518958,1715038251608,-9305.88,0.00024657,2]
[326518961,1715038251621,-4849.21,0.00024657,2]
[326518963,1715038251634,-2130.11,0.00024657,2]
[326518965,1715038251647,-2716.22,0.00024657,2]
[326518967,1715038251661,-500.0,0.00024657,2]
[326518970,1715038251675,-2778.1,0.00024657,2]
[326518972,1715038251689,-506.07637891,0.00024657,2]
[326518974,1715038251702,-8265.89,0.00024657,2]
[326518977,1715038251716,-505.13802352,0.00024657,2]
[326518979,1715038251729,-500.0,0.00024657,2]
[326518981,1715038251743,-500.0,0.00024657,2]
[326518983,1715038251756,-500.0,0.00024657,2]
[326518984,1715038251769,-500.0,0.00024657,2]
[326518985,1715038251782,-500.0,0.00024657,2]
[326518986,1715038251800,-500.0,0.00024657,2]
[326518987,1715038251814,-500.0,0.00024657,2]
[326518988,1715038251827,-500.0,0.00024657,2]
[326518989,1715038251840,-1791.84,0.00024657,2]
[326518990,1715038251853,-500.0,0.00024657,2]
[326518991,1715038251869,-502.55096841,0.00024657,2]
[326518992,1715038251881,-2504.12,0.00024657,2]
[326518993,1715038251894,-500.0,0.00024657,2]
[326518994,1715038251908,-980.75,0.00024657,2]
[326518995,1715038251922,-520.02,0.00024657,2]
[326518996,1715038251937,-948.57,0.00024657,2]
[326518997,1715038251950,-500.0,0.00024657,2]
[326518998,1715038251964,-4331.01,0.00024657,2]
[326518999,1715038251977,-1314.36,0.00024657,2]
[326519000,1715038251990,-5476.69,0.00024657,2]
[326519001,1715038252003,-500.0,0.00024657,2]
[326519002,1715038252016,-1350.91,0.00024657,2]
[326519003,1715038252029,-505.26288828,0.00024657,2]
[326519004,1715038252049,-500.0,0.00024657,2]
[326519005,1715038252061,-1194.38,0.00024657,2]
[326519006,1715038252074,-1099.07,0.00024657,2]
[326519007,1715038252088,-2952.54,0.00024657,2]
[326519008,1715038252103,-500.0,0.00024657,2]
[326519009,1715038252116,-2090.40013,0.00024657,2]
[326519010,1715038252130,-3191.36,0.00024657,2]
[326519011,1715038252144,-2290.07,0.00024657,2]
[326519012,1715038252156,-692.03,0.00024657,2]
[326519013,1715038252170,-2276.32,0.00024657,2]
[326519014,1715038252183,-502.48203797,0.00024657,2]
[326519015,1715038252196,-500.0,0.00024657,2]
[326519016,1715038252210,-904.53,0.00024657,2]
[326519017,1715038252222,-500.0,0.00024657,2]
[326519018,1715038252236,-500.0,0.00024657,2]
[326519019,1715038252250,-2480.29,0.00024657,2]
[326519020,1715038252264,-500.0,0.00024657,2]
[326519021,1715038252277,-527.34,0.00024657,2]
[326519022,1715038252290,-3754.79,0.00024657,2]
[326519023,1715038252303,-500.0,0.00024657,2]
[326519024,1715038252316,-500.0,0.00024657,2]
[326519025,1715038252330,-3245.94,0.00024657,2]
[326519026,1715038252342,-1712.81,0.00024657,2]
[326519027,1715038252358,-500.0,0.00024657,2]
[326519028,1715038252372,-500.0,0.00024657,2]
[326519029,1715038252385,-1239.92,0.00024657,2]
[326519030,1715038252398,-516.48,0.00024657,2]
[326519031,1715038252411,-1267.94,0.00024657,2]
[326519032,1715038252425,-516.48,0.00024657,2]
[326519033,1715038252438,-500.0,0.00024657,2]
[326519034,1715038252450,-501.46585017,0.00024657,2]
[326519035,1715038252465,-516.48,0.00024657,2]